[Event "Turkey IS Bank Super League 2017"]
[Site "Darica-Kocaeli"]
[Date "2017.08.04"]
[Round "11"]
[White "Tarlabasi, Emirhan"]
[Black "Gokerkan, Cem Kaan"]
[Result "0-1"]
[ECO "E12"]
[WhiteElo "2046"]
[BlackElo "2321"]
[Annotator "ChessBase"]
[PlyCount "68"]
[EventType "team-tourn"]
[EventCountry "TUR"]
[SourceTitle "playchess.com"]
[Source "ChessBase"]
[SourceQuality "1"]
[TimeControl "40/5400+30:1800+30"]

1. d4 {[%emt 0:00:30]} Nf6 {[%emt 0:01:00]} 2. c4 {[%emt 0:00:30]} e6 {[%emt 0:00:30]} 3. Nf3 {[%emt 0:00:00]} b6 {[%emt 0:00:30]} 4. a3 {[%emt 0:00:00]} Bb7 {[%emt 0:01:30]} 5. Nc3 {[%emt 0:00:30]} d5 {[%emt 0:00:00]} 6. cxd5 {[%emt 0:00:30]} Nxd5 {[%emt 0:00:00]} 7. Qc2 {[%emt 0:00:30]} Nxc3 {[%emt 0:00:30]} 8. bxc3 {[%emt 0:00:30]} Nd7 {[%emt 0:00:30]} 9. e4 {[%emt 0:00:30]} c5 {[%emt 0:00:30]} 10. Bd3 {[%emt 0:00:30]} Qc7 {[%emt 0:00:30]} 11. O-O {[%emt 0:05:30]} cxd4 {[%emt 0:00:30]} 12. cxd4 {[%emt 0:00:30]} Qxc2 {[%emt 0:00:30]} 13. Bxc2 {[%emt 0:00:30]} Be7 {[%emt 0:00:30]} 14. Bb2 {[%emt 0:12:30]} O-O {[%emt 0:01:30]} 15. Rac1 {[%emt 0:03:30]} Ba6 {[%emt 0:14:30]} 16. Rfd1 {[%emt 0:08:30]} Rac8 {[%emt 0:00:00]} 17. Bb1 {[%emt 0:01:30]} b5 {[%emt 0:10:00]} 18. d5 {[%emt 0:10:30]} exd5 {[%emt 0:01:30]} 19. exd5 {[%emt 0:01:30]} Nb6 {[%emt 0:04:30]} 20. d6 {[%emt 0:12:30]} Rxc1 {[%emt 0:02:30]} 21. Bxc1 {[%emt 0:00:30]} Rd8 {[%emt 0:01:30]} 22. Bf4 {[%emt 0:00:00]} Nc4 {[%emt 0:40:15]} 23. Ne5 {[%emt 0:28:18]} Rxd6 {[%emt 0:01:40]} 24. Re1 {[%emt 0:05:01]} Nxe5 {[%emt 0:04:25]} 25. Bxe5 {[%emt 0:00:10]} Rd8 {[%emt 0:00:30]} 26. Bc7 {[%emt 0:07:04]} Rd7 {[%emt 0:00:34]} 27. Ba5 {[%emt 0:00:31]} g6 {[%emt 0:01:16]} 28. Bc2 {[%emt 0:00:52]} Bxa3 {[%emt 0:01:31]} 29. Bc3 {[%emt 0:00:28]} Bf8 {[%emt 0:02:03]} 30. Ra1 {[%emt 0:00:32]} Rc7 {[%emt 0:01:38]} 31. Rxa6 {[%emt 0:00:30]} Rxc3 {[%emt 0:00:02]} 32. Ra2 {[%emt 0:00:30]} b4 {[%emt 0:00:00]} 33. Bd1 {[%emt 0:00:35]} Rc1 {[%emt 0:00:16]} 34. Rd2 {[%emt 0:00:00]} b3 {[%emt 0:00:00]} 0-1

[Event "Turkey IS Bank Super League 2017"]
[Site "Darica-Kocaeli"]
[Date "2017.08.04"]
[Round "11"]
[White "Unat, Can Haktan"]
[Black "Kesgin, Halit Kaan"]
[Result "1-0"]
[ECO "A07"]
[WhiteElo "2006"]
[BlackElo "2207"]
[Annotator "NA"]
[PlyCount "116"]
[EventType "team-tourn"]
[EventCountry "TUR"]
[SourceTitle "playchess.com"]
[Source "ChessBase"]
[SourceQuality "1"]
[TimeControl "40/5400+30:1800+30"]

1. Nf3 {[%emt 0:00:30]} d5 {[%emt 0:01:00]} 2. g3 {[%emt 0:00:30]} Nf6 {[%emt 0:00:30]} 3. Bg2 {[%emt 0:00:00]} c5 {[%emt 0:00:30]} 4. O-O {[%emt 0:03:00]} Nc6 {[%emt 0:02:30]} 5. d3 {[%emt 0:04:30]} e6 {[%emt 0:00:30]} 6. Nc3 {[%emt 0:01:30]} Be7 {[%emt 0:01:30]} 7. e4 {[%emt 0:04:30]} O-O {[%emt 0:00:30]} 8. a3 {[%emt 0:00:30] A07: Réti Opening: New York and Capablanca Systems} (8. Bd2 b6 9. Re1 d4 10. Nb5 e5 11. a4 a6 12. Na3 Rb8 13. Nc4 Nd7 14. Bh3 Qc7 15. c3 b5 {1-0 (39) Harikrishna,P (2727)-Wang,Y (2720) Beijing 2014}) 8... a6 {[%emt 0:07:30]} 9. Kh1 $146 {[%emt 0:07:30]} ({Predecessor:} 9. h3 b5 10. exd5 exd5 11. Re1 Ra7 12. d4 h6 13. Be3 b4 14. axb4 cxb4 15. Na4 Bd6 {1-0 (49) Bancod,R (2375)-Nadera,B (2401) Manila 2008}) 9... h6 {[%emt 0:09:30]} 10. Bd2 {[%emt 0:02:30]} Re8 {[%emt 0:03:30]} 11. Ng1 {[%emt 0:01:30]} dxe4 {[%emt 0:01:30]} 12. Nxe4 {[%emt 0:02:30]} Nxe4 {[%emt 0:00:00]} 13. Bxe4 {[%emt 0:00:00]} f5 {[%emt 0:02:00]} (13... e5 $15) 14. Bg2 {[%emt 0:01:00]} (14. Bxc6 $5 bxc6 15. Bc3 $11) 14... Bf6 {[%emt 0:00:00]} 15. Rb1 {[%emt 0:02:30]} e5 {[%emt 0:06:00]} 16. f4 {[%emt 0:02:30]} c4 {[%emt 0:10:30]} 17. dxc4 {[%emt 0:19:30]} e4 {[%emt 0:00:30]} 18. Be3 {[%emt 0:00:30]} Be6 {[%emt 0:04:30]} 19. Qe2 {[%emt 0:05:30]} Qc7 {[%emt 0:03:30]} 20. Rfd1 {[%emt 0:01:30]} Ne7 {[%emt 0:09:30]} 21. b3 {[%emt 0:00:30] [#]} (21. Bf1 $11) 21... b5 $1 {[%emt 0:00:30]} 22. Qf2 {[%emt 0:20:08]} bxc4 {[%emt 0:00:30]} 23. Ne2 {[%emt 0:01:45]} Nd5 {[%emt 0:06:30]} 24. Rbc1 {[%emt 0:01:29]} Bb2 {[%emt 0:03:30]} 25. Rb1 {[%emt 0:00:42]} Bxa3 {[%emt 0:01:30]} 26. b4 {[%emt 0:09:11]} Rab8 {[%emt 0:04:30]} 27. c3 {[%emt 0:00:39]} a5 {[%emt 0:00:30]} 28. b5 {[%emt 0:00:22]} Nxe3 {[%emt 0:01:30]} 29. Qxe3 {[%emt 0:00:37]} Bc5 {[%emt 0:00:00]} 30. Nd4 {[%emt 0:01:00]} Bd7 {[%emt 0:01:00]} 31. Bf1 {[%emt 0:00:34]} Bb6 {[%emt 0:04:41]} 32. Qe2 {[%emt 0:00:47]} Kh7 {[%emt 0:05:43]} 33. Qxc4 {[%emt 0:00:34]} Qxc4 {[%emt 0:01:16]} 34. Bxc4 {[%emt 0:00:03]} Rec8 {[%emt 0:00:14]} 35. Ne6 {[%emt 0:02:14]} Rxc4 {[%emt 0:03:27]} ({Black should try} 35... Be8 $17 36. Nf8+ Kh8) 36. Rxd7 {[%emt 0:00:01]} e3 {[%emt 0:02:06]} 37. Nxg7 {[%emt 0:02:17]} Kg6 {[%emt 0:00:03]} 38. Rbd1 {[%emt 0:01:06]} Bc5 {[%emt 0:00:07]} 39. Ne6 {[%emt 0:01:35]} Rxb5 {[%emt 0:03:29]} 40. Nxc5 {[%emt 0:00:30]} Rcxc5 {[%emt 0:01:54]} 41. R1d6+ {[%emt 0:06:26]} Kh5 {[%emt 0:00:30]} 42. Kg2 $1 {[%emt 0:01:30]} Rb2+ {[%emt 0:00:30]} ({Much worse is} 42... Rxc3 $6 43. Kh3 $16) 43. Kh3 {[%emt 0:00:00]} Rxc3 $2 {[%emt 0:00:30]} (43... Rd2 $1 $14 44. Rxd2 exd2) 44. Rh7 {[%emt 0:01:00]} Rxh2+ {[%emt 0:00:30]} 45. Kxh2 {[%emt 0:00:30]} Kg4 {[%emt 0:00:00]} 46. Rd1 {[%emt 0:15:28]} Rc2+ {[%emt 0:01:00]} 47. Kg1 {[%emt 0:00:01]} Kxg3 {[%emt 0:01:30]} 48. Rg7+ {[%emt 0:02:28]} Kxf4 {[%emt 0:01:30]} 49. Rf1+ {[%emt 0:00:04]} Ke4 {[%emt 0:00:30]} 50. Re7+ {[%emt 0:00:02]} Kd3 {[%emt 0:01:30]} 51. Rxf5 $18 {[%emt 0:00:30]} Rc1+ {[%emt 0:00:00]} 52. Rf1 {[%emt 0:00:13]} Rc3 {[%emt 0:00:00]} 53. Ra1 {[%emt 0:00:23]} Ke2 {[%emt 0:00:30]} 54. Rxa5 {[%emt 0:00:36]} Kf3 {[%emt 0:00:30]} 55. Rf5+ {[%emt 0:00:22]} Kg4 {[%emt 0:00:00]} 56. Rf1 {[%emt 0:00:18]} Kg3 {[%emt 0:00:00]} 57. Rg7+ {[%emt 0:00:30]} Kh4 {[%emt 0:00:30]} 58. Kg2 {[%emt 0:00:00]} Rd3 {[%emt 0:00:30]} 1-0

[Event "Turkey IS Bank Super League 2017"]
[Site "Darica-Kocaeli"]
[Date "2017.08.04"]
[Round "11"]
[White "Gundogan, Sinem Cagla"]
[Black "Yassibag, Ipek Asli"]
[Result "1-0"]
[ECO "B01"]
[WhiteElo "2000"]
[BlackElo "1880"]
[Annotator "NA"]
[PlyCount "65"]
[EventType "team-tourn"]
[EventCountry "TUR"]
[SourceTitle "playchess.com"]
[Source "ChessBase"]
[SourceQuality "1"]
[TimeControl "40/5400+30:1800+30"]

1. e4 {[%emt 0:00:30]} d5 {[%emt 0:01:00]} 2. exd5 {[%emt 0:00:30]} Nf6 {[%emt 0:00:30]} 3. Bb5+ {[%emt 0:00:30]} Bd7 {[%emt 0:00:30]} 4. Be2 {[%emt 0:00:00]} Nxd5 {[%emt 0:00:00] LiveBook: 367 Games} 5. d4 {[%emt 0:00:00]} Bf5 {[%emt 0:00:00]} 6. Nf3 {[%emt 0:00:00]} e6 {[%emt 0:02:30]} 7. O-O {[%emt 0:00:00]} Nc6 {[%emt 0:00:30] B01: Scandinavian Defence} 8. a3 {[%emt 0:00:30]} a6 {[%emt 0:00:30]} (8... Be7 9. c4 Nb6 10. Nc3 O-O 11. Be3 Bf6 12. h3 Qd7 13. b4 Rad8 14. Qb3 Nxd4 15. Bxd4 Bxd4 16. Rad1 e5 17. Nb5 Qe7 18. c5 Nd5 19. Nbxd4 exd4 20. Nxd4 {1-0 (41) Dvoirys,S (2552)-Tilicheev,V (2497) Pardubice 2017}) 9. c4 {[%emt 0:01:30]} Nf6 $146 {[%emt 0:03:30]} ({Predecessor:} 9... Nb6 10. Nc3 Bg4 11. d5 exd5 12. cxd5 Ne7 13. Qd4 Bh5 14. Re1 f6 15. Bf4 Nbxd5 16. Nxd5 Qxd5 17. Qxd5 Nxd5 18. Bxa6+ {1-0 (32) Sanchez Romero,M (2216)-Torrijos Garcia,B (1862) Mislata 2015}) 10. h3 {[%emt 0:01:30]} Be7 {[%emt 0:00:30]} 11. Be3 {[%emt 0:01:30]} O-O {[%emt 0:01:30]} 12. Nc3 {[%emt 0:03:30]} Qd7 {[%emt 0:02:30]} 13. b4 {[%emt 0:00:30]} Rfd8 {[%emt 0:01:30]} 14. Qb3 {[%emt 0:01:30]} Ne4 {[%emt 0:07:30]} 15. Nxe4 {[%emt 0:09:30]} Bxe4 {[%emt 0:00:00]} 16. Rad1 {[%emt 0:00:30]} Bf6 {[%emt 0:01:00]} 17. Rd2 {[%emt 0:00:30]} (17. Ne5 $14 Qe8 18. f3) 17... Qe7 {[%emt 0:10:30]} 18. Rfd1 {[%emt 0:02:30]} Rd7 {[%emt 0:02:30]} 19. d5 {[%emt 0:07:30]} exd5 {[%emt 0:03:30]} 20. cxd5 {[%emt 0:00:30]} Ne5 {[%emt 0:00:30]} 21. Bc5 {[%emt 0:01:30]} Qe8 {[%emt 0:01:30]} 22. Nxe5 {[%emt 0:02:30]} Qxe5 {[%emt 0:05:30]} 23. Bg4 {[%emt 0:00:30]} Rdd8 {[%emt 0:00:30]} 24. Re2 {[%emt 0:05:30]} Bxd5 {[%emt 0:07:30]} 25. Rxd5 {[%emt 0:00:30]} Qxd5 {[%emt 0:01:30]} 26. Re8+ {[%emt 0:00:00]} Rxe8 {[%emt 0:00:30]} 27. Qxd5 {[%emt 0:00:00]} c6 {[%emt 0:02:30]} 28. Qd7 {[%emt 0:01:30]} Rab8 {[%emt 0:03:30]} 29. g3 {[%emt 0:03:30]} g6 {[%emt 0:04:30]} 30. Ba7 {[%emt 0:06:30]} Re7 {[%emt 0:07:30]} 31. Qd6 {[%emt 0:00:30]} Re1+ {[%emt 0:00:30]} 32. Kg2 {[%emt 0:00:30]} Be5 {[%emt 0:01:30]} 33. Qd2 $18 {[%emt 0:00:00]} ({Worse is} 33. Bxb8 Bxd6 34. Bxd6 f5 $11) 1-0

[Event "Turkey IS Bank Super League 2017"]
[Site "Darica-Kocaeli"]
[Date "2017.08.04"]
[Round "11"]
[White "Ozbay, Ece"]
[Black "Ayan, Bengu Sena"]
[Result "0-1"]
[ECO "C14"]
[WhiteElo "1970"]
[BlackElo "1862"]
[Annotator "NA"]
[PlyCount "101"]
[EventType "team-tourn"]
[EventCountry "TUR"]
[SourceTitle "playchess.com"]
[Source "ChessBase"]
[SourceQuality "1"]
[TimeControl "40/5400+30:1800+30"]

1. e4 {[%emt 0:00:30]} e6 {[%emt 0:01:00]} 2. d4 {[%emt 0:00:30]} d5 {[%emt 0:00:30]} 3. Nc3 {[%emt 0:00:00]} Nf6 {[%emt 0:01:30]} 4. Bg5 {[%emt 0:00:00]} Be7 {[%emt 0:00:30]} 5. e5 {[%emt 0:00:30]} Nfd7 {[%emt 0:00:30]} 6. Bxe7 {[%emt 0:00:30]} Qxe7 {[%emt 0:00:30]} 7. f4 {[%emt 0:00:30]} a6 {[%emt 0:00:30]} 8. Nf3 {[%emt 0:00:30]} Nb6 {[%emt 0:00:30] C14: French: Classical System: 4 Bg5 Be7 main line} 9. Bd3 {[%emt 0:08:30]} Bd7 {[%emt 0:07:30]} 10. Ne2 $146 {[%emt 0:05:30]} ({Predecessor:} 10. O-O c5 11. dxc5 Qxc5+ 12. Kh1 Nc6 13. Qe1 g6 14. a3 Ne7 15. Qh4 h6 16. Ne2 Nf5 17. Bxf5 gxf5 18. Ned4 Qe7 {½-½ (18) Jovanovic,Z (2529)-Balog,I (2526) Hungary 2014}) 10... c5 {[%emt 0:07:30]} 11. c3 {[%emt 0:00:30]} Nc6 {[%emt 0:01:30]} 12. O-O {[%emt 0:03:30]} h6 {[%emt 0:07:30]} 13. Ng3 {[%emt 0:06:30]} cxd4 {[%emt 0:00:30]} 14. cxd4 {[%emt 0:17:30]} Nb4 {[%emt 0:04:30]} 15. Bb1 {[%emt 0:03:30]} Nc4 {[%emt 0:06:30]} 16. Qe2 {[%emt 0:03:30]} Nb6 {[%emt 0:10:30]} 17. Qf2 {[%emt 0:05:30]} g6 {[%emt 0:10:30]} 18. a3 {[%emt 0:02:30]} Nc6 {[%emt 0:00:30]} 19. h4 {[%emt 0:03:30]} O-O-O {[%emt 0:06:30]} 20. Bd3 {[%emt 0:05:30]} Kb8 {[%emt 0:01:30]} 21. b4 {[%emt 0:01:30]} Na7 {[%emt 0:01:30]} 22. Ne2 {[%emt 0:08:30]} Rc8 {[%emt 0:03:30]} 23. Rfc1 {[%emt 0:03:19]} Bb5 {[%emt 0:02:30]} 24. Ne1 {[%emt 0:07:36]} g5 {[%emt 0:04:30]} 25. hxg5 {[%emt 0:07:49]} hxg5 {[%emt 0:00:53]} 26. Bxb5 {[%emt 0:00:45]} axb5 {[%emt 0:03:04]} 27. Rxc8+ {[%emt 0:02:31]} Naxc8 {[%emt 0:00:28]} 28. f5 {[%emt 0:01:06]} Qf8 {[%emt 0:01:19]} 29. Ng3 {[%emt 0:01:41]} Qh6 {[%emt 0:00:56]} 30. Kf1 {[%emt 0:00:36]} Nc4 {[%emt 0:00:55]} 31. Ke2 {[%emt 0:00:31]} g4 {[%emt 0:15:16]} 32. Ra2 {[%emt 0:00:00]} Qc1 {[%emt 0:00:30]} 33. Kf1 {[%emt 0:00:00]} Ne3+ {[%emt 0:00:35]} 34. Kg1 {[%emt 0:00:00]} Nxf5 {[%emt 0:00:28]} 35. Nxf5 {[%emt 0:00:00]} exf5 {[%emt 0:00:30]} 36. Rc2 {[%emt 0:00:00]} Qh6 {[%emt 0:00:34]} 37. Qg3 {[%emt 0:00:00]} Ka8 {[%emt 0:00:31]} 38. Qd3 {[%emt 0:00:00]} Qh2+ {[%emt 0:00:45]} 39. Kf2 {[%emt 0:00:00]} Qf4+ {[%emt 0:00:30]} 40. Ke2 {[%emt 0:00:00]} Nb6 {[%emt 0:10:46]} 41. Qe3 {[%emt 0:03:36] [#]} Qh2 $1 {[%emt 0:03:58]} 42. Qg5 $19 {[%emt 0:00:30]} g3 {[%emt 0:00:30]} 43. Qxf5 {[%emt 0:00:30]} Rh4 {[%emt 0:00:30]} 44. Qf6 {[%emt 0:00:30]} Re4+ {[%emt 0:00:30]} 45. Kd3 {[%emt 0:00:30]} Qg1 {[%emt 0:16:29]} 46. Rd2 {[%emt 0:13:02]} Qxd4+ {[%emt 0:00:24]} 47. Kc2 {[%emt 0:00:30]} Qc4+ {[%emt 0:00:22]} 48. Kd1 {[%emt 0:00:26]} Qb3+ {[%emt 0:00:20]} 49. Rc2 {[%emt 0:01:34]} Qb1+ {[%emt 0:00:06]} 50. Rc1 {[%emt 0:00:25]} Rd4+ {[%emt 0:00:36]} 51. Ke2 {[%emt 0:00:09]} 0-1

[Event "Turkey IS Bank Super League 2017"]
[Site "Darica-Kocaeli"]
[Date "2017.08.04"]
[Round "11"]
[White "Tirak, Mert"]
[Black "Yurtseven, Melih"]
[Result "0-1"]
[ECO "B10"]
[WhiteElo "1909"]
[BlackElo "2353"]
[Annotator "ChessBase"]
[PlyCount "86"]
[EventType "team-tourn"]
[EventCountry "TUR"]
[SourceTitle "playchess.com"]
[Source "ChessBase"]
[SourceQuality "1"]
[TimeControl "40/5400+30:1800+30"]

1. e4 {[%emt 0:00:30]} c6 {[%emt 0:02:00]} 2. b3 {[%emt 0:00:30]} d5 {[%emt 0:00:30]} 3. Bb2 {[%emt 0:00:00]} dxe4 {[%emt 0:00:30]} 4. Nc3 {[%emt 0:00:00]} Nf6 {[%emt 0:00:30]} 5. Nge2 {[%emt 0:00:00]} e6 {[%emt 0:12:30]} 6. Ng3 {[%emt 0:01:00]} Be7 {[%emt 0:00:00]} 7. Qe2 {[%emt 0:00:00]} O-O {[%emt 0:00:00]} 8. Ngxe4 {[%emt 0:00:00]} Nbd7 {[%emt 0:03:30]} 9. O-O-O {[%emt 0:00:30]} b5 {[%emt 0:00:30]} 10. Nxf6+ {[%emt 0:02:30]} Bxf6 {[%emt 0:01:30]} 11. Ne4 {[%emt 0:00:30]} Bxb2+ {[%emt 0:00:30]} 12. Kxb2 {[%emt 0:00:30]} a5 {[%emt 0:01:30]} 13. a3 {[%emt 0:04:30]} Nf6 {[%emt 0:01:30]} 14. d4 {[%emt 0:12:30]} b4 {[%emt 0:04:30]} 15. Nxf6+ {[%emt 0:04:30]} Qxf6 {[%emt 0:00:30]} 16. a4 {[%emt 0:00:30]} Rd8 {[%emt 0:03:30]} 17. Qe4 {[%emt 0:02:30]} Bb7 {[%emt 0:01:30]} 18. Bc4 {[%emt 0:03:30]} Rd7 {[%emt 0:04:30]} 19. Qe5 {[%emt 0:03:30]} Rad8 {[%emt 0:00:00]} 20. Qxa5 {[%emt 0:10:30]} Rxd4 {[%emt 0:00:00]} 21. Rxd4 {[%emt 0:00:00]} Qxd4+ {[%emt 0:00:30]} 22. Kb1 {[%emt 0:00:00]} c5 {[%emt 0:00:30]} 23. f3 {[%emt 0:01:30]} Rf8 {[%emt 0:05:30]} 24. Qc7 {[%emt 0:10:30]} Bd5 {[%emt 0:10:30]} 25. Bxd5 {[%emt 0:07:30]} exd5 {[%emt 0:00:30]} 26. Re1 {[%emt 0:00:30]} c4 {[%emt 0:02:30]} 27. Qe5 {[%emt 0:03:30]} Qf2 {[%emt 0:01:30]} 28. Qe2 {[%emt 0:05:30]} Qb6 {[%emt 0:00:00]} 29. g4 {[%emt 0:09:34]} h6 {[%emt 0:02:00]} 30. h4 {[%emt 0:04:33]} Rc8 {[%emt 0:01:30]} 31. Qe5 {[%emt 0:07:45]} cxb3 {[%emt 0:06:30]} 32. cxb3 {[%emt 0:00:24]} Qf2 {[%emt 0:01:30]} 33. Rc1 {[%emt 0:03:09]} Rd8 {[%emt 0:05:30]} 34. Qe7 {[%emt 0:01:05]} Rf8 {[%emt 0:00:30]} 35. Qxb4 {[%emt 0:00:53]} Qxf3 {[%emt 0:00:00]} 36. h5 {[%emt 0:00:54]} Re8 {[%emt 0:04:00]} 37. a5 {[%emt 0:02:11]} d4 {[%emt 0:03:30]} 38. Qxd4 {[%emt 0:01:16]} Qxb3+ {[%emt 0:00:30]} 39. Qb2 {[%emt 0:00:18]} Qd3+ {[%emt 0:00:00]} 40. Ka1 {[%emt 0:00:00]} Re4 {[%emt 0:11:00]} 41. Qa2 {[%emt 0:11:28]} Qb5 {[%emt 0:01:30]} 42. Rc8+ {[%emt 0:03:03]} Kh7 {[%emt 0:01:30]} 43. Qc2 {[%emt 0:02:49]} f5 {[%emt 0:01:30]} 0-1

[Event "Turkey IS Bank Super League 2017"]
[Site "Darica-Kocaeli"]
[Date "2017.08.04"]
[Round "11"]
[White "Ayazmali, Gizem"]
[Black "Sade, Defne"]
[Result "1-0"]
[ECO "D11"]
[WhiteElo "1849"]
[BlackElo "1654"]
[Annotator "NA"]
[PlyCount "95"]
[EventType "team-tourn"]
[EventCountry "TUR"]
[SourceTitle "playchess.com"]
[Source "ChessBase"]
[SourceQuality "1"]
[TimeControl "40/5400+30:1800+30"]

1. Nf3 {[%emt 0:00:30]} d5 {[%emt 0:02:00]} 2. g3 {[%emt 0:00:30]} c6 {[%emt 0:00:00]} 3. Bg2 {[%emt 0:00:30]} Bf5 {[%emt 0:00:00]} 4. O-O {[%emt 0:00:00]} h6 {[%emt 0:00:00]} 5. d4 {[%emt 0:00:00]} Nd7 {[%emt 0:01:00]} 6. Nbd2 {[%emt 0:01:30]} Ngf6 {[%emt 0:00:30]} 7. c4 {[%emt 0:00:30]} e6 {[%emt 0:00:30]} 8. cxd5 {[%emt 0:00:30]} exd5 {[%emt 0:00:00]} 9. Ne5 {[%emt 0:04:30]} Bd6 {[%emt 0:02:00]} 10. Nxd7 {[%emt 0:07:30]} Qxd7 {[%emt 0:00:30]} 11. f3 {[%emt 0:00:30]} Bh3 {[%emt 0:05:30]} 12. e4 {[%emt 0:01:30]} Bxg2 {[%emt 0:03:30]} 13. Kxg2 {[%emt 0:00:30]} Be7 {[%emt 0:00:30]} (13... dxe4 $1 $15 14. Nxe4 Nd5) 14. e5 {[%emt 0:02:30]} Nh7 {[%emt 0:00:30]} 15. f4 {[%emt 0:00:00]} O-O-O {[%emt 0:02:30]} 16. h3 $11 {[%emt 0:02:00]} f5 {[%emt 0:01:30]} 17. Qc2 {[%emt 0:03:30]} h5 {[%emt 0:03:30]} 18. h4 {[%emt 0:01:30]} Nf8 {[%emt 0:01:30]} 19. Nf3 {[%emt 0:01:30]} g6 {[%emt 0:01:30]} 20. Re1 {[%emt 0:02:30]} Ne6 {[%emt 0:00:00]} 21. Bd2 {[%emt 0:00:00]} Qc7 {[%emt 0:02:00]} 22. b4 {[%emt 0:02:00]} Kd7 {[%emt 0:01:30]} 23. Rac1 {[%emt 0:03:30]} Rc8 {[%emt 0:01:30]} 24. b5 {[%emt 0:02:30]} Ke8 {[%emt 0:17:30]} 25. bxc6 {[%emt 0:02:30]} bxc6 {[%emt 0:01:30]} 26. Qa4 {[%emt 0:00:30]} Kf7 {[%emt 0:02:30]} 27. Bb4 {[%emt 0:07:30]} Bxb4 {[%emt 0:07:30]} 28. Qxb4 {[%emt 0:00:00]} Rhd8 {[%emt 0:02:30]} 29. Ng5+ {[%emt 0:02:00]} Nxg5 {[%emt 0:01:30]} 30. hxg5 {[%emt 0:00:30]} Ke6 {[%emt 0:00:30]} 31. Rc5 {[%emt 0:02:30]} Rb8 {[%emt 0:06:30]} 32. Qc3 {[%emt 0:01:30]} Rb6 {[%emt 0:14:30]} 33. Rc1 {[%emt 0:00:00]} Rc8 {[%emt 0:00:53]} 34. a4 {[%emt 0:00:00]} Qb7 {[%emt 0:09:12]} 35. Rc2 {[%emt 0:06:30]} Qa6 {[%emt 0:09:22]} 36. a5 {[%emt 0:01:30]} Rb5 {[%emt 0:00:53]} 37. Rxc6+ {[%emt 0:00:30]} Rxc6 {[%emt 0:00:30]} 38. Qxc6+ {[%emt 0:00:30]} Qxc6 {[%emt 0:00:30]} 39. Rxc6+ {[%emt 0:00:00]} Kf7 {[%emt 0:01:19]} 40. Rc7+ {[%emt 0:00:00]} Kg8 {[%emt 0:01:21]} 41. Rxa7 {[%emt 0:00:30]} Rb4 {[%emt 0:00:30]} 42. Rd7 {[%emt 0:00:30]} Rxd4 {[%emt 0:03:30]} 43. a6 {[%emt 0:00:30]} Ra4 {[%emt 0:00:30]} 44. a7 {[%emt 0:00:00]} Ra2+ {[%emt 0:00:30]} 45. Kh3 {[%emt 0:00:00]} d4 {[%emt 0:00:30]} 46. Rd8+ {[%emt 0:00:30]} Kf7 {[%emt 0:00:30]} 47. a8=Q {[%emt 0:00:30]} Rxa8 {[%emt 0:00:30]} 48. Rxa8 {[%emt 0:00:00]} 1-0

[Event "Turkey IS Bank Super League 2017"]
[Site "Darica-Kocaeli"]
[Date "2017.08.04"]
[Round "11"]
[White "Aluc, Bulut Evrim"]
[Black "Kose, Ulya"]
[Result "1-0"]
[ECO "D46"]
[WhiteElo "1699"]
[BlackElo "1591"]
[Annotator "NA"]
[PlyCount "69"]
[EventType "team-tourn"]
[EventCountry "TUR"]
[SourceTitle "playchess.com"]
[Source "ChessBase"]
[SourceQuality "1"]
[TimeControl "40/5400+30:1800+30"]

1. d4 {[%emt 0:00:30]} d5 {[%emt 0:02:00]} 2. c4 {[%emt 0:00:30]} e6 {[%emt 0:00:00]} 3. Nc3 {[%emt 0:00:30]} Nf6 {[%emt 0:00:00]} 4. e3 {[%emt 0:00:30]} Nbd7 {[%emt 0:00:30]} 5. Bd3 {[%emt 0:00:30]} c6 {[%emt 0:00:30]} 6. Nf3 {[%emt 0:00:30]} Bd6 {[%emt 0:02:30]} 7. O-O {[%emt 0:04:30]} O-O {[%emt 0:00:30]} 8. e4 {[%emt 0:02:30]} dxe4 {[%emt 0:03:30]} 9. Nxe4 {[%emt 0:00:00]} Nxe4 {[%emt 0:00:30]} 10. Bxe4 {[%emt 0:00:00]} h6 {[%emt 0:00:30]} 11. Bc2 {[%emt 0:03:30]} e5 {[%emt 0:06:30]} 12. Re1 {[%emt 0:05:30]} exd4 {[%emt 0:06:30]} 13. Qxd4 {[%emt 0:05:30]} Bc5 {[%emt 0:05:30]} 14. Qd2 {[%emt 0:09:30]} Nf6 {[%emt 0:07:30]} 15. b4 {[%emt 0:00:30]} Bb6 {[%emt 0:05:30]} 16. Qc3 {[%emt 0:09:30]} a5 {[%emt 0:06:30]} 17. a3 {[%emt 0:00:30]} c5 {[%emt 0:06:30]} 18. b5 {[%emt 0:10:30]} a4 {[%emt 0:03:30]} 19. Rd1 {[%emt 0:00:30]} Qc7 {[%emt 0:00:30]} 20. Bxh6 {[%emt 0:01:30]} Ba5 {[%emt 0:06:30]} 21. Qb2 {[%emt 0:00:30]} Bg4 {[%emt 0:04:30]} 22. Rd5 {[%emt 0:11:30]} Ne8 {[%emt 0:04:30]} 23. Rg5 {[%emt 0:11:30]} f5 {[%emt 0:00:30]} 24. Ne5 {[%emt 0:01:30]} Rf6 {[%emt 0:12:56]} 25. Nxg4 {[%emt 0:00:30]} fxg4 {[%emt 0:00:19]} 26. Bxg7 {[%emt 0:00:31]} Nxg7 {[%emt 0:02:10]} 27. Qxf6 {[%emt 0:00:35]} Rf8 {[%emt 0:00:32]} 28. Qg6 {[%emt 0:00:58]} Bc3 {[%emt 0:01:04]} 29. Qh7+ {[%emt 0:02:46]} Kf7 {[%emt 0:00:18]} 30. Rd1 {[%emt 0:01:38]} Ke8 {[%emt 0:03:08]} 31. Qe4+ {[%emt 0:01:58]} Kf7 {[%emt 0:00:32]} 32. Qd5+ {[%emt 0:00:25]} Ke8 {[%emt 0:01:01]} 33. Rxg7 {[%emt 0:01:28]} Qxg7 {[%emt 0:02:10]} 34. Qe6+ {[%emt 0:00:05]} Qe7 {[%emt 0:00:19]} 35. Bg6+ {[%emt 0:00:03]} 1-0